lending/lending_fUSD_20241103
["ID","MTS","AMOUNT","RATE_DAILY","PERIOD"]
[341193041,1730592206306,197.0,0.0002599,30]
[341193042,1730592330301,-156.29,0.00015342,2]
[341193043,1730592330326,-300.0,0.00019725,2]
[341193044,1730592330346,-115.61108026,0.00025918,2]
[341193045,1730592433110,-156.91,0.00015342,2]
[341193046,1730592433129,-200.0,0.00023,2]
[341193047,1730592433148,-202.78495161,0.00025788,2]
[341193048,1730592433171,-823.38891974,0.00025918,2]
[341193049,1730592433192,-939.0,0.00027283,2]
[341193050,1730592433215,-156.29,0.00027507,2]
[341193051,1730592433236,-2352.74797875,0.00028647,2]
[341193052,1730592437084,-175.15042236,0.00028647,2]
[341193053,1730592437103,-696.7544002,0.00028647,5]
[341193061,1730592631475,-234.2455998,0.00028647,5]
[341193062,1730592631485,-156.91,0.00028858,2]
[341193063,1730592631494,-479.85,0.00030312,2]
[341193064,1730592631503,-165.36,0.00031175,2]
[341193065,1730592631512,-165.36,0.00031676,2]
[341193066,1730592631521,-234.59527114,0.00031935,2]
[341193067,1730592631532,-700.0,0.00031935,2]
[341193068,1730592631580,-1170.10472886,0.00031935,2]
[341193069,1730592631589,-524.65,0.0003194,2]
[341193070,1730592631598,-3106.01,0.00031947,2]
[341193071,1730592631608,-150.0,0.00031947,7]
[341193072,1730592631725,-2598.63,0.00031947,5]
[341193073,1730592631735,-1962.58491197,0.00031955,2]
[341193074,1730592631747,-732.08508803,0.00031955,2]
[341193075,1730592631756,-250.0,0.00031955,2]
[341193076,1730592631765,-500.0,0.00031973,2]
[341193077,1730592631775,-174.62,0.00031979,2]
[341193078,1730592631784,-2061.26,0.0003199,2]
[341193079,1730592631793,-1000.0,0.00032002,2]
[341193080,1730592631803,-23900.0,0.00032012,2]
[341193081,1730592631812,-250.0,0.00032013,2]
[341193082,1730592631821,-156.47,0.00032035,2]
[341193083,1730592631831,-150.0,0.00032145,2]
[341193084,1730592631840,-677.76,0.00032158,2]
[341193086,1730592631848,-165.36,0.00032177,2]
[341193088,1730592631857,-539.0,0.00032214,2]
[341193090,1730592631866,-479.85,0.00032576,2]
[341193092,1730592631875,-165.36,0.00032678,2]
[341193093,1730592631884,-150.72,0.00032825,2]
[341193095,1730592631894,-150.72,0.0003285,2]
[341193098,1730592631905,-150.72,0.00032875,2]
[341193100,1730592631916,-150.72,0.00032901,2]
[341193102,1730592631928,-150.72,0.00032926,2]
[341193104,1730592631937,-150.72,0.00032951,2]
[341193106,1730592631948,-150.72,0.00032976,2]
[341193108,1730592631959,-150.72,0.00033002,2]
[341193110,1730592631969,-150.72,0.00033027,2]
[341193112,1730592631979,-150.72,0.00033052,2]
[341193114,1730592631988,-150.72,0.00033077,2]
[341193116,1730592631998,-167.04,0.00033087,2]
[341193118,1730592632008,-150.72,0.00033103,2]
[341193120,1730592632017,-150.72,0.00033128,2]
[341193122,1730592632026,-150.72,0.00033153,2]
[341193124,1730592632036,-165.36,0.00033179,2]
[341193126,1730592632045,-8014.81009135,0.00033334,2]
[341193128,1730592632056,-211.48,0.00033473,120]
[341193130,1730592632066,-529.2843154,0.0003356,60]
[341193132,1730592632078,-500.0,0.0003356,60]
[341193134,1730592632088,-165.36,0.0003368,2]
[341193136,1730592632097,-165.36,0.00034181,2]
[341193137,1730592632106,-1000.0,0.000344,2]
[341193138,1730592632116,-9711.91805812,0.000344,2]
[341193139,1730592632128,-341.87644136,0.000344,2]
[341193140,1730592632148,-1276.18191748,0.000344,2]
[341193141,1730592632159,-938.0,0.000344,2]
[341193142,1730592632169,-664.57727663,0.000344,2]
[341193143,1730592632180,-305.4068682,0.000344,2]
[341193153,1730592637589,-608.35632613,0.000344,2]
[341193154,1730592637601,-1236.03773293,0.000344,2]
[341193155,1730592637852,-22715.72257915,0.000344,2]
[341193156,1730592637862,-263.025,0.000344,2]
[341193157,1730592637871,-1708.6911,0.000344,2]
[341193158,1730592637881,-1000.0,0.000344,2]
[341193159,1730592637890,-517.9218,0.000344,2]
[341193160,1730592637899,-539.42237901,0.000344,15]
[341193161,1730592637908,-2500.0,0.000344,2]
[341193162,1730592637917,-414.1006807,0.00034403,2]
[341193163,1730592637928,-168.66,0.00034484,2]
[341193164,1730592637937,-38228.97517702,0.000345,2]
[341193167,1730592639640,-704.78,0.000345,2]
[341193168,1730592639653,-714.41248766,0.000345,2]
[341193169,1730592639665,-401.5392,0.000345,2]
[341193170,1730592639677,-467.89291831,0.000345,2]
[341193171,1730592639802,-1010.11999998,0.000345,2]
[341193180,1730592642633,-2987.69380011,0.000345,2]
[341193187,1730592645504,-263.30633517,0.000345,2]
[341193195,1730593558132,-155.63,0.00015342,2]
[341193196,1730593558153,-188.69,0.00015342,2]
[341193197,1730593558174,-526.44842908,0.00016,2]
[341193198,1730593628161,-2655.45087318,0.00016,2]
[341193199,1730593643084,-1846.14548257,0.00016,2]
[341193200,1730593643111,-590.7776972,0.00016,2]
[341193201,1730593700274,-1750.0,0.00016,2]
[341193244,1730593839886,-6923.19160487,0.00016,2]
[341193246,1730593842868,-500.07508841,0.00016,2]
[341193275,1730594826135,-158.48,0.00015342,2]
[341193276,1730594826158,-3310.04918587,0.00016,2]
[341193277,1730594849134,-688.23057426,0.00016,2]
[341193387,1730595042707,-388.57752026,0.00016,2]
[341193391,1730595042924,-3053.13630786,0.00016,2]
[341193424,1730595938220,-235.97889461,0.00015342,2]
[341193425,1730595938241,-162.21,0.00015342,2]
[341193426,1730595938262,-156.91,0.00015342,2]
[341193427,1730595938282,-16.80668174,0.00015999,2]
[341193428,1730596041219,-202.78495161,0.00015919,2]
[341193429,1730596041239,-4492.11009497,0.00016,2]
[341193430,1730596042088,-853.54308775,0.00016,2]
[341193436,1730596232240,-164.23,0.00015342,2]
[341193437,1730596232256,-283.0,0.00015999,2]
[341193438,1730596232271,-554.95030121,0.00016,2]
[341193439,1730596232306,-6631.50481508,0.00016,2]
[341193440,1730596232323,-12561.42879897,0.00016,2]
[341193441,1730596232337,-3633.09471819,0.00016,2]
[341193442,1730596238083,-865.1330739,0.00016,2]
[341193445,1730596238201,-1892.27757239,0.00016,2]
[341193446,1730596238313,-6263.06368725,0.00016,2]
[341193614,1730596240473,-40585.44020527,0.00016,2]
[341193616,1730596240485,-2428.45462636,0.00016,2]
[341193900,1730596243268,-600.23121034,0.00016,2]
[341193912,1730596243381,-9777.3995783,0.00016,2]
[341193913,1730596243392,-623.2797952,0.00016,2]
[341193925,1730597138128,-172.16,0.00015342,2]
[341193926,1730597138148,-705.77439783,0.000159,2]
[341193928,1730597228127,-2872.3981231,0.000159,2]
[341193929,1730597231214,-1753.05933645,0.000159,2]
[341193930,1730597232097,-610.15185578,0.000159,2]
[341193939,1730597432545,-6044.42049184,0.000159,2]
[341193940,1730597432554,-290.51120554,0.00015973,2]
[341193941,1730597432563,-150.01,0.00015999,2]
[341193942,1730597432572,-11954.96648217,0.00015999,2]
[341193943,1730597432581,-2000.0,0.00016,2]
[341193944,1730597432590,-200.0,0.00016,2]
[341193945,1730597432599,-15034.99258643,0.00016,2]
[341193946,1730597432701,-352.0387656,0.00016,2]
[341193947,1730597432712,-5790.90293509,0.00016,2]
[341193951,1730597438521,-151.27605965,0.00015999,2]
[341193952,1730597438533,-848.97800053,0.00016,2]
[341193953,1730597438546,-3997.39728,0.00016,2]
[341193954,1730597438654,-303.54270223,0.00016,2]
[341193955,1730597440653,-4144.2,0.00016,2]
[341193956,1730597440666,-12207.61890237,0.00016,2]
[341193957,1730597443447,-50488.38911016,0.00016,2]
[341193958,1730597443573,-1629.7768344,0.00016,2]
[341193959,1730597443588,-9296.166327,0.00016,2]
[341193960,1730597443717,-3404.87003477,0.00016,2]
[341193961,1730597443728,-5981.79606995,0.00016,2]
[341193967,1730597446420,-1730.44253479,0.00016,2]
[341193969,1730597446737,-3640.11095541,0.00016,2]
[341193974,1730597506628,10720.24241552,0.0002599,30]
[341193976,1730597679086,150.0,0.00017,3]
[341193978,1730597926444,2512.77900065,0.00025999,30]
[341193980,1730598416685,299.99,0.00016698,4]
[341193981,1730598436126,-150.71,0.00015342,2]
[341193982,1730598436147,-162.21,0.00015342,2]
[341193983,1730598436166,-353.305968,0.00015817,2]
[341193984,1730598436186,-128.49855936,0.000159,2]
[341193985,1730598452146,-92.81592822,0.000159,2]
[341193986,1730598452167,-683.27565868,0.000159,2]
[341193987,1730598452187,-2632.84042541,0.00015917,2]
[341194013,1730598631691,-655.1,0.00015917,2]
[341194014,1730598631700,-177205.32712415,0.00016,2]
[341194015,1730598631711,-472.0118,0.00016,2]
[341194016,1730598631890,-300.0,0.00016,2]
[341194053,1730598645735,-103994.90850005,0.00016,2]
[341194054,1730598645927,-1341.00485288,0.00016,2]
[341194060,1730598701047,161.99077483,0.00025999,30]
[341194062,1730599549148,-157.11,0.00015342,2]
[341194063,1730599549169,-164.23,0.00015342,2]
[341194064,1730599549191,-262.06769518,0.00015458,2]
[341194065,1730599627128,-203.25731013,0.00015381,2]
[341194066,1730599627148,-381.34230482,0.00015458,2]
[341194067,1730599627168,-345.30379818,0.00015641,2]
[341194068,1730599627188,-3636.41610208,0.00016,2]
[341194069,1730599630096,-847.66536109,0.00016,2]
[341194076,1730599831707,-152.45,0.00015342,2]
[341194079,1730599831716,-323.05343098,0.00016,2]
[341194081,1730599831878,-8183.2551812,0.00016,2]
[341194082,1730599831898,-289.51658555,0.00016,2]
[341194083,1730599831937,-461.12021235,0.00016,2]
[341194084,1730599832121,-63369.33303219,0.00016,2]
[341194085,1730599832130,-5807.8660994,0.00016102,2]
[341194086,1730599832140,-6158.1887679,0.00016113,2]
[341194087,1730599832149,-2672.84205989,0.00016124,2]
[341194088,1730599832159,-314.0,0.00016125,2]
[341194089,1730599832170,-345.30379818,0.00016246,2]
[341194090,1730599832180,-4364.1813775,0.00016295,2]
[341194091,1730599832190,-76261.52845115,0.00016306,2]
[341194092,1730599832199,-614.94809283,0.00016475,2]
[341194093,1730599832209,-198.93,0.00016575,2]
[341194094,1730599832218,-499.99,0.0001685,2]
[341194095,1730599832227,-23900.0,0.00017325,2]
[341194096,1730599832236,-161.08,0.00017334,2]
[341194097,1730599832246,-809.03,0.00017338,2]
[341194098,1730599832255,-174.61,0.00017345,2]
[341194100,1730599832264,-4470.62,0.00017349,2]
[341194102,1730599832273,-250.0,0.00017362,2]
[341194104,1730599832283,-332.5,0.00017368,2]
[341194106,1730599832292,-181.12,0.00017378,2]
[341194108,1730599832302,-200.0,0.00017378,2]
[341194110,1730599832311,-1410.46,0.00017408,2]
[341194113,1730599832321,-1852.42,0.00017408,2]
[341194115,1730599832331,-2832.22,0.00017412,2]
[341194117,1730599832340,-200.0,0.0001742,2]
[341194119,1730599832349,-221.65,0.00017458,2]
[341194121,1730599832358,-27368.2100644,0.00017475,2]
[341194123,1730599832370,-201.274889,0.00017475,2]
[341194125,1730599832380,-151.0,0.00017475,2]
[341194127,1730599832389,-151.0,0.00017475,2]
[341194129,1730599832398,-151.0,0.00017475,2]
[341194131,1730599832406,-156.372962,0.00017475,2]
[341194133,1730599832415,-151.0,0.00017475,2]
[341194135,1730599832425,-161.650521,0.00017475,2]
[341194137,1730599832434,-151.0,0.00017475,2]
[341194139,1730599832443,-151.0,0.00017475,2]
[341194140,1730599832452,-151.0,0.00017475,2]
[341194142,1730599832462,-151.0,0.00017475,2]
[341194144,1730599832471,-171.520694,0.00017475,2]
[341194146,1730599832480,-151.0,0.00017475,2]
[341194148,1730599832489,-164.646137,0.00017475,2]
[341194150,1730599832499,-159.550431,0.00017475,2]
[341194152,1730599832508,-151.0,0.00017475,2]
[341194154,1730599832517,-161.161461,0.00017475,2]
[341194156,1730599832526,-151.0,0.00017475,2]
[341194158,1730599832535,-151.0,0.00017475,2]
[341194160,1730599832545,-158.290439,0.00017475,2]
[341194163,1730599832554,-151.0,0.00017475,2]
[341194165,1730599832564,-151.0,0.00017475,2]
[341194167,1730599832575,-151.0,0.00017475,2]
[341194169,1730599832585,-151.0,0.00017475,2]
[341194171,1730599832597,-716.454664,0.00017475,2]
[341194173,1730599832607,-151.0,0.00017475,2]
[341194175,1730599832619,-151.0,0.00017475,2]
[341194177,1730599832628,-155.272335,0.00017475,2]
[341194179,1730599832637,-152.932243,0.00017475,2]
[341194181,1730599832647,-177.530082,0.00017475,2]
[341194183,1730599832656,-177.530082,0.00017475,2]
[341194185,1730599832665,-167.498878,0.00017475,2]
[341194187,1730599832674,-151.0,0.00017475,2]
[341194189,1730599832684,-151.0,0.00017475,2]
[341194191,1730599832695,-151.0,0.00017475,2]
[341194193,1730599832706,-201.280439,0.00017475,2]
[341194195,1730599832715,-1373.41,0.00017506,2]
[341194197,1730599832725,-221.65,0.00017632,2]
[341194198,1730599832735,-151.0,0.00017699,2]
[341194199,1730599832744,-151.0,0.00017699,2]
[341194200,1730599832756,-151.0,0.00017699,2]
[341194201,1730599832765,-643.41,0.00017722,2]
[341194202,1730599832777,-1000.0,0.00017737,2]
[341194203,1730599832786,-4025.91174932,0.00017818,2]
[341194204,1730599832799,-705.976,0.00017818,2]
[341194216,1730599843254,-680.631931,0.00017475,2]
[341194217,1730599843264,-5568.95755627,0.00017818,2]
[341194218,1730599843273,-182.14,0.00017931,2]
[341194219,1730599843282,-152.881748,0.00018342,2]
[341194220,1730599843293,-151.0,0.00018342,2]
[341194221,1730599843302,-151.0,0.00018342,2]
[341194222,1730599843312,-223.0,0.00018342,2]
[341194224,1730599843322,-157.913915,0.00018342,2]
[341194225,1730599843331,-158.903963,0.00018342,2]
[341194226,1730599843341,-151.0,0.00018342,2]
[341194227,1730599843350,-195.282095,0.00018342,2]
[341194228,1730599843361,-151.0,0.00018342,2]
[341194229,1730599843370,-196.916133,0.00018342,2]
[341194230,1730599843380,-207.93525,0.00018342,2]
[341194231,1730599843390,-170.212558,0.00018342,2]
[341194232,1730599843399,-151.0,0.00018342,2]
[341194233,1730599843410,-151.0,0.00018342,2]
[341194234,1730599843422,-151.0,0.00018342,2]
[341194235,1730599843433,-151.0,0.00018342,2]
[341194236,1730599843443,-152.703414,0.00018342,2]
[341194237,1730599843455,-168.064151,0.00018342,2]
[341194238,1730599843465,-151.0,0.00018342,2]
[341194239,1730599843476,-151.0,0.00018342,2]
[341194240,1730599843486,-177.530082,0.00018342,2]
[341194241,1730599843496,-177.530082,0.00018342,2]
[341194242,1730599843506,-151.0,0.00018342,2]
[341194243,1730599843516,-151.0,0.00018342,2]
[341194244,1730599843525,-243.046489,0.00018342,2]
[341194245,1730599843534,-680.631931,0.00018342,2]
[341194246,1730599843546,-151.0,0.00018356,2]
[341194247,1730599843556,-205.343421,0.00018356,2]
[341194248,1730599843566,-152.502219,0.00018356,2]
[341194249,1730599843576,-249.445594,0.00018356,2]
[341194250,1730599843586,-22923.76,0.00018356,2]
[341194251,1730599843596,-300.0,0.0001879,2]
[341194252,1730599843607,-177.530082,0.0001879,2]
[341194253,1730599843617,-177.530082,0.0001879,2]
[341194254,1730599843628,-151.0,0.0001879,2]
[341194255,1730599843637,-151.0,0.0001879,2]
[341194256,1730599843647,-680.631931,0.0001879,2]
[341194257,1730599843656,-217.720213,0.00018793,2]
[341194258,1730599843665,-151.0,0.00018793,2]
[341194259,1730599843674,-251.373321,0.00018793,2]
[341194260,1730599843683,-151.0,0.00018793,2]
[341194261,1730599843692,-181.12,0.00019116,2]
[341194262,1730599843803,-158.45,0.00019274,2]
[341194263,1730599843816,-367.0,0.000194,2]
[341194264,1730599843827,-614.94809279,0.00019566,2]
[341194265,1730599843838,-1941.0,0.000196,2]
[341194266,1730599843848,-315.54,0.00019726,2]
[341194267,1730599843861,-3843.20680074,0.000199,2]
[341194268,1730599843874,-3843.20680073,0.000199,2]
[341194269,1730599843883,-3843.20680073,0.000199,2]
[341194270,1730599843893,-1000.0,0.00019954,2]
[341194271,1730599843902,-315.54,0.00019974,2]
[341194272,1730599843911,-643.41,0.00019986,2]
[341194273,1730599843920,-15236.25334374,0.0002,2]
[341194274,1730599843937,-1558.85651084,0.0002,2]
[341194275,1730599843950,-312.09193443,0.0002,2]
[341194277,1730599845782,-4093.56268676,0.0002,2]
[341194278,1730599845795,-257.34700163,0.0002,2]
[341194279,1730599845806,-1261.11729565,0.0002,2]
[341194280,1730599845915,-344.7,0.0002,2]
[341194281,1730599845928,-297.22477103,0.0002,2]
[341194282,1730599845939,-1054.89722343,0.0002,2]
[341194302,1730599966427,-680.631931,0.00017475,2]
[341194303,1730599966452,-680.631931,0.00018342,2]
[341194304,1730599966474,-680.631931,0.0001879,2]
[341194305,1730599966603,-544.6841729,0.00019999,2]
[341194306,1730599966624,-307.0,0.00019999,2]
[341194307,1730599966647,-9441.4200341,0.0002,2]
[341194311,1730600730898,4033.89977434,0.000101,2]
[341194312,1730600735239,175.9825,0.00014813,2]
[341194313,1730600794801,576.76181499,0.00015,2]
[341194316,1730600834326,2600.0,0.000158,5]
[341194317,1730600836420,5200.0,0.000159,5]
[341194472,1730600873199,153.95859072,0.00025,120]
[341194474,1730600885982,1877382.4202802,0.00015,2]
[341194475,1730600927171,300.0,0.00015,2]
[341194510,1730601032043,-1088.97723789,0.00015223,2]
[341194516,1730601032088,-60.29002311,0.00015223,2]
[341194518,1730601032098,-196.16060006,0.00015242,2]
[341194520,1730601032107,-305.08864247,0.000153,2]
[341194522,1730601032116,-153.44,0.00015342,2]
[341194524,1730601032125,-44.11016072,0.00015342,2]
[341194525,1730601032136,-108.54983928,0.00015342,2]
[341194526,1730601032145,-482.02120989,0.000154,2]
[341194527,1730601032154,-196.16060005,0.000155,2]
[341194528,1730601032164,-300.0,0.00015523,2]
[341194529,1730601032173,-13.78696583,0.00015524,2]
[341194530,1730601032186,-136.21303417,0.00015524,2]
[341194531,1730601032198,-268.70958015,0.00015524,2]
[341194532,1730601032210,-1038.831207,0.00015524,2]
[341194533,1730601032224,-653.18224521,0.00015524,2]
[341194534,1730601036085,-1402.31285219,0.00015524,2]
[341194535,1730601036208,-20675.61283097,0.00015524,2]
[341194536,1730601036221,-683.83,0.00015524,2]
[341194537,1730601036324,-592.13,0.00015524,2]
[341194595,1730601037747,809.81,0.0001599,3]
[341194608,1730601037985,-300.0,0.00015525,2]
[341194611,1730601038125,-2335.34165638,0.00015525,2]
[341194612,1730601038135,-1384.54606746,0.00015525,2]
[341194613,1730601038455,-1989.47898931,0.00015525,2]
[341194614,1730601038467,-60569.63328685,0.00015525,2]
[341194615,1730601038479,-379.8747606,0.000156,2]
[341194616,1730601038490,-2873.59622057,0.0001575,2]
[341194617,1730601038501,-4985.83070417,0.000159,2]
[341194618,1730601038512,-591.51324619,0.000159,2]
[341194619,1730601038523,-450.82033765,0.000159,2]
[341194620,1730601038583,-671.29641616,0.000159,2]
[341194621,1730601038593,-157.73808721,0.0001595,2]
[341194622,1730601038602,-500.63834988,0.00015973,2]
[341194623,1730601038611,-160.32649184,0.00015973,2]
[341194624,1730601038621,-972.21923652,0.0001599,2]
[341194625,1730601038631,-1264.71350092,0.00015995,2]
[341194626,1730601038641,-3131.89407902,0.00016,2]
[341194627,1730601038653,-825.91568815,0.00016,2]
[341194628,1730601038664,-2296.27029113,0.00016,2]
[341194638,1730601040060,-684.56,0.00016,2]
[341194639,1730601040071,-1367.08,0.00016,2]
[341194661,1730601044097,-3469.27732218,0.00016,2]
[341194664,1730601044109,-3421.2,0.00016,2]
[341194672,1730601044315,-7.6873667,0.00016,2]
[341194673,1730601044327,-964.58984194,0.00016,2]
[341194674,1730601044339,-380.0,0.00016,2]
[341194675,1730601044350,-7060.50000001,0.00016,2]
[341194676,1730601044362,-6897.08287571,0.00016,2]
[341194677,1730601044374,-3728.46440547,0.00016,2]
[341194678,1730601044385,-3013.4526341,0.00016,2]
[341194679,1730601044397,-1313.7987662,0.00016,2]
[341194680,1730601044409,-1126.30020644,0.00016,2]
[341194681,1730601044436,-342.659151,0.00016,2]
[341194682,1730601044560,-2969.33560512,0.00016,2]
[341194813,1730601046000,-411.3,0.00016,2]
[341194823,1730601046090,-6888.8,0.00016,2]
[341194825,1730601046101,-38416.68337247,0.00016,2]
[341194827,1730601046113,-104983.89149976,0.00016,2]
[341194830,1730601046124,-499.48596815,0.00016,2]
[341194898,1730601047767,-20685.85904203,0.00016,2]
[341194899,1730601047779,-2064.0,0.00016,2]
[341194900,1730601047791,-682.82,0.00016,2]
[341194906,1730601048448,315.39,0.0001599,3]
[341194907,1730601051847,164.613,0.000145,2]
[341194908,1730601052347,-76465.5,0.00016,2]
[341194909,1730601236141,334.29,0.00025065,120]
[341194910,1730601317223,177.88,0.00024877,30]
[341194911,1730601575879,-1314.54,0.00014601,2]
[341194912,1730601575899,-150.0,0.00014608,2]
[341194913,1730601575921,-4901.47,0.00014693,2]
[341194914,1730601576941,-722.64,0.00014693,2]
[341194915,1730601579489,-741.9,0.00014693,2]
[341194916,1730601579510,-722.64,0.00014693,2]
[341194917,1730601593040,-250.0,0.00014589,2]
[341194918,1730601637466,-519.7,0.00014621,2]
[341194919,1730601686429,-3788.48,0.00014627,2]
[341194920,1730601691036,152.03512493,0.0001271,2]
[341194921,1730601691057,152.03512493,0.0001271,2]
[341194922,1730601691078,152.03512493,0.0001271,2]
[341194923,1730601691100,152.03512493,0.0001271,2]
[341194924,1730601691122,152.03512493,0.0001271,2]
[341194925,1730601691145,152.03512493,0.0001271,2]
[341194926,1730601691166,132.76925042,0.0001271,2]
[341194927,1730601741769,-2059.52881814,0.00014631,2]
[341194928,1730601742314,-691.47118186,0.00014631,2]
[341194929,1730601742336,-156.46,0.00014631,2]
[341194930,1730601745449,150.0,0.00014631,2]
[341194931,1730601745471,150.0,0.00014631,2]
[341194932,1730601745491,9.72,0.00014631,2]
[341194933,1730601777920,-250.0,0.00014616,2]
[341194934,1730601812657,-1585.4326417,0.00014723,2]
[341194935,1730601813165,-140.8673583,0.00014723,2]
[341194936,1730601817402,-861.83145984,0.00014599,2]
[341194937,1730601823274,-150.0,0.00014599,2]
[341194938,1730601823668,-150.0,0.00014599,2]
[341194939,1730601824122,-150.0,0.00014599,2]
[341194940,1730601824561,-150.0,0.00014599,2]
[341194941,1730601824960,-150.0,0.00014599,2]
[341194942,1730601828440,-150.0,0.00014599,2]
[341194943,1730601829027,-150.0,0.00014599,2]
[341194944,1730601829693,-150.0,0.00014599,2]
[341194945,1730601830206,-150.0,0.00014599,2]
[341194946,1730601831490,-150.0,0.00014599,2]
[341194947,1730601832228,-150.0,0.00014599,2]
[341194948,1730601832702,-150.0,0.00014599,2]
[341194949,1730601834818,177.88,0.00024877,30]
[341194950,1730601836198,-150.0,0.00014599,2]
[341194951,1730601836718,-150.0,0.00014599,2]
[341194952,1730601837109,-150.0,0.00014599,2]
[341194953,1730601837498,-150.0,0.00014599,2]
[341194954,1730601838013,-150.0,0.00014599,2]
[341194955,1730601838412,-150.0,0.00014599,2]
[341194956,1730601838972,-150.0,0.00014599,2]
[341194957,1730601839797,-150.0,0.00014599,2]
[341194958,1730601840457,-150.0,0.00014599,2]
[341194959,1730601844073,-150.0,0.00014599,2]
[341194960,1730601844953,-150.0,0.00014599,2]
[341194961,1730601845789,-150.0,0.00014599,2]
[341194962,1730601847250,-150.0,0.00014599,2]
[341194963,1730601847857,-150.0,0.00014599,2]
[341194964,1730601848273,-150.0,0.00014599,2]
[341194965,1730601848653,-150.0,0.00014599,2]
[341194966,1730601852131,-150.0,0.00014599,2]
[341194968,1730602044797,2400.0,0.000158,5]
[341194969,1730602046965,4800.0,0.000159,5]
[341194976,1730602211376,150.0,0.00012137,2]
[341194977,1730602211404,853.76,0.00012137,2]
[341194978,1730602232041,-351.1699,0.0001398,2]
[341194993,1730602232247,-285.55304789,0.0001398,2]
[341194994,1730602232258,-724.79165911,0.0001398,2]
[341194995,1730602237046,-316.09748888,0.0001398,2]
[341194996,1730602237059,-1687.13560902,0.0001398,2]
[341194997,1730602237070,-300.21976691,0.0001398,2]
[341194998,1730602237081,-1951.50406708,0.0001398,2]
[341194999,1730602237090,-353.305968,0.00014051,2]
[341195000,1730602237100,-1000.0,0.00014072,2]
[341195001,1730602237109,-250.0,0.0001408,2]
[341195002,1730602237118,-839.4,0.00014117,2]
[341195003,1730602237128,-50000.0,0.00014117,2]
[341195004,1730602237137,-3921.08,0.00014152,2]
[341195005,1730602237146,-200.0,0.00014187,2]
[341195006,1730602237155,-500.0,0.00014246,2]
[341195007,1730602237165,-243.08677209,0.00014246,2]
[341195008,1730602237360,-362.34850709,0.00014246,2]
[341195010,1730602237369,-500.0,0.00014246,2]
[341195012,1730602237378,-500.0,0.00014246,2]
[341195014,1730602237387,-500.0,0.00014246,2]
[341195015,1730602237397,-500.0,0.00014246,2]
[341195017,1730602237406,-1040.55149291,0.00014247,2]
[341195019,1730602237418,-2455.83930556,0.00014247,2]
[341195034,1730602238312,-409.0281131,0.00014247,2]
[341195036,1730602238324,-2320.68108843,0.00014247,2]
[341195038,1730602238333,-999.99,0.00014247,2]
[341195040,1730602238342,-689.26148157,0.00014401,2]
[341195042,1730602238353,-314.49851843,0.00014401,2]
[341195043,1730602238362,-3000.0,0.000145,2]
[341195044,1730602238371,-862.89,0.000145,2]
[341195045,1730602238380,-362.37,0.000145,2]
[341195046,1730602238389,-150.99,0.000145,2]
[341195047,1730602238398,-6721.09,0.000145,2]
[341195048,1730602238406,-956.36,0.00014508,2]
[341195049,1730602238416,-512.93,0.0001456,2]
[341195050,1730602238425,-1709.49,0.0001457,2]
[341195051,1730602238438,-19436.58148154,0.00014572,2]
[341195052,1730602238449,-336.24822664,0.00014572,2]
[341195053,1730602238459,-476.6856093,0.00014572,2]
[341195054,1730602238470,-250.249983,0.00014572,2]
[341195081,1730602238982,-312.80202001,0.00014572,2]